bitfinex-derivatives/quotes_BTCF0:USTF0_20260107
["timestamp","ask_amount","ask_price","bid_price","bid_amount"]
[1767819607712,0.010988,91103.0,91087.0,0.0973128]
[1767819608209,0.09920482,91108.0,91087.0,0.0973128]
[1767819608210,0.010988,91106.0,91087.0,0.0973128]
[1767819608712,0.010988,91106.0,91090.0,0.0190004]
[1767819609205,0.010988,91106.0,91089.0,0.0973128]
[1767819610115,0.010987,91108.0,91089.0,0.0973128]
[1767819610306,0.010988,91103.0,91086.0,0.0934]
[1767819610711,0.010988,91106.0,91086.0,0.0934]
[1767819611204,0.010988,91104.0,91086.0,0.0934]
[1767819611408,0.010988,91104.0,91086.0,0.1907128]
[1767819611609,0.010988,91104.0,91087.0,0.0973128]
[1767819613315,0.010988,91104.0,91091.0,0.0973128]
[1767819615417,0.010988,91102.0,91086.0,0.1124004]
[1767819615614,0.010988,91102.0,91086.0,0.2097132]
[1767819615912,0.010987,91109.0,91090.0,0.010989]
[1767819616116,0.0934,91111.0,91092.0,0.1163132]
[1767819616513,0.010988,91105.0,91092.0,0.0973128]
[1767819616915,0.010988,91101.0,91086.0,0.0934]
[1767819617217,0.010988,91104.0,91086.0,0.0934]
[1767819617419,0.010988,91104.0,91087.0,0.1163132]
[1767819617608,0.010988,91105.0,91090.0,0.1163132]
[1767819620322,0.01801546,91111.0,91090.0,0.1163132]
[1767819620620,0.01825553,91122.0,91101.0,0.11003911]
[1767819620819,0.01825553,91121.0,91102.0,0.010988]
[1767819621020,0.0934,91120.0,91102.0,0.010988]
[1767819621514,0.0934,91120.0,91091.0,0.010989]
[1767819621515,0.010985,91128.0,91109.0,0.010987]
[1767819621720,0.0934,91129.0,91106.0,0.11003911]
[1767819622109,0.11165553,91129.0,91106.0,0.11003911]
[1767819622620,0.0934,91133.0,91119.0,0.11003911]
[1767819622811,0.0934,91133.0,91122.0,0.11003911]
[1767819623013,0.01098,91170.0,91129.0,0.010985]
[1767819623213,0.010982,91155.0,91135.0,0.11003911]
[1767819623412,0.01825553,91159.0,91135.0,0.11003911]
[1767819623727,0.0934,91164.0,91139.0,0.12102311]
[1767819623915,0.010981,91160.0,91140.0,0.09222996]
[1767819624316,0.010981,91160.0,91142.0,0.09222996]
[1767819624616,0.0934,91164.0,91142.0,0.09222996]
[1767819624818,0.010974,91216.0,91162.0,0.11003911]
[1767819624819,0.01825553,91189.0,91162.0,0.11003911]
[1767819625024,0.0934,91183.0,91162.0,0.12102011]
[1767819625525,0.0934,91183.0,91168.0,0.01098]
[1767819625913,0.12283083,91200.0,91174.0,0.01780915]
[1767819626113,0.010977,91197.0,91175.0,0.11003911]
[1767819627034,0.09559302,91199.0,91175.0,0.11003911]
[1767819627035,0.09559302,91199.0,91177.0,0.11003911]
[1767819627417,0.09559302,91199.0,91179.0,0.11003911]
[1767819627613,0.01825553,91227.0,91191.0,0.09222996]
[1767819627825,0.09336,91227.0,91198.0,0.01780915]
[1767819628124,0.09336,91227.0,91203.0,0.09222996]
[1767819628319,0.09336,91227.0,91197.0,0.09336]
[1767819628320,0.0935993,91226.0,91197.0,0.09336]
[1767819628525,0.010974,91215.0,91197.0,0.09336]
[1767819629212,0.010974,91220.0,91197.0,0.09336]
[1767819629623,0.0935993,91224.0,91197.0,0.09336]
[1767819629929,0.010974,91216.0,91197.0,0.09336]
[1767819630114,0.010975,91213.0,91197.0,0.09336]
[1767819630317,0.010975,91213.0,91036.0,0.109964]
[1767819630318,0.11185483,91208.0,91194.0,0.09336]
[1767819630626,0.010975,91207.0,91191.0,0.09336]
[1767819631312,0.1045743,91208.0,91191.0,0.09336]
[1767819631517,0.010975,91208.0,91191.0,0.09336]
[1767819633327,0.010975,91213.0,91192.0,0.09821518]
[1767819634228,0.010975,91213.0,91192.0,0.11050479]
[1767819634429,0.010975,91215.0,91196.0,0.09821518]
[1767819635127,0.09336,91216.0,91200.0,0.11028424]
[1767819637027,0.09336,91216.0,91200.0,0.09821518]
[1767819637324,0.010975,91213.0,91200.0,0.09821518]
[1767819637530,0.09336,91216.0,91200.0,0.09821518]
[1767819637922,0.010974,91215.0,91200.0,0.09821518]
[1767819639124,0.010924,91215.0,91200.0,0.09821518]
[1767819639423,0.010975,91215.0,91200.0,0.09821518]
[1767819639625,0.09332,91223.0,91200.0,0.10898801]
[1767819639825,0.09332,91223.0,91201.0,0.01077283]
[1767819640128,0.09332,91223.0,91208.0,0.10898801]
[1767819640826,0.09332,91223.0,91210.0,0.09821518]
[1767819641732,0.010973,91227.0,91210.0,0.09821518]
[1767819641927,0.0021923,91229.0,91210.0,0.09821518]
[1767819642231,0.010973,91227.0,91210.0,0.09821518]
[1767819642430,0.010923,91227.0,91210.0,0.09821518]
[1767819642932,0.010972,91238.0,91219.0,0.09821518]
[1767819643820,0.09332,91240.0,91219.0,0.09821518]
[1767819643821,0.09332,91240.0,91225.0,0.010973]
[1767819644020,0.56759158,91259.0,91230.0,0.1081053]
[1767819644021,0.01097,91253.0,91230.0,0.1081053]
[1767819644225,0.01097,91253.0,91232.0,0.1081053]
[1767819644427,0.01097,91253.0,91233.0,0.19153518]
[1767819644627,0.01097,91253.0,91234.0,0.09821518]
[1767819644824,0.010971,91244.0,91234.0,0.09821518]
[1767819645024,0.010971,91244.0,91209.0,0.010975]
[1767819645025,0.12736558,91232.0,91209.0,0.010975]
[1767819645334,0.09748762,91231.0,91210.0,0.09328]
[1767819646029,0.010973,91225.0,91210.0,0.09328]
[1767819646727,0.010973,91228.0,91211.0,0.09821518]
[1767819648033,0.11218596,91237.0,91211.0,0.09821518]
[1767819648433,0.20967358,91237.0,91211.0,0.09821518]
[1767819648734,0.010973,91225.0,91211.0,0.09821518]
[1767819649128,0.010973,91226.0,91213.0,0.09821518]
[1767819650032,0.010974,91219.0,91210.0,0.09328]
[1767819650330,0.01890596,91230.0,91198.0,0.09328]
[1767819650331,0.010975,91211.0,91198.0,0.09328]
[1767819650526,0.11639358,91215.0,91198.0,0.09328]
[1767819650725,0.010975,91210.0,91198.0,0.09328]
[1767819650931,0.010975,91210.0,91192.0,0.09821518]
[1767819650932,0.010975,91213.0,91193.0,0.09328]
[1767819651234,0.010975,91214.0,91193.0,0.09328]
[1767819651428,0.010975,91213.0,91193.0,0.09328]
[1767819651622,0.010975,91211.0,91193.0,0.09328]
[1767819651936,0.11639358,91215.0,91193.0,0.09328]
[1767819652233,0.11639358,91215.0,91192.0,0.09821518]
[1767819652637,0.11639358,91215.0,91193.0,0.09328]
[1767819652829,0.010975,91209.0,91190.0,0.09328]
[1767819653737,0.010975,91212.0,91190.0,0.09328]
[1767819653938,0.010975,91212.0,91190.0,0.104257]
[1767819654634,0.010975,91210.0,91190.0,0.104257]
[1767819654831,0.010975,91210.0,91190.0,0.09328]
[1767819655938,0.09748762,91213.0,91188.0,0.010978]
[1767819656138,0.09748762,91213.0,91189.0,0.09328]
[1767819657027,0.09748762,91213.0,91190.0,0.11548579]
[1767819657439,0.010975,91212.0,91192.0,0.10919218]
[1767819657637,0.010975,91212.0,91192.0,0.09821518]
[1767819660936,0.104255,91215.0,91199.0,0.09821518]
[1767819661137,0.010975,91212.0,91199.0,0.09821518]
[1767819661535,0.010974,91223.0,91202.0,0.10432431]
[1767819661743,0.010974,91222.0,91206.0,0.10432431]
[1767819661940,0.09328,91224.0,91174.0,0.06167663]
[1767819661941,0.09229062,91223.0,91174.0,0.06167663]
[1767819662240,0.09229062,91207.0,91175.0,0.09328]
[1767819662441,0.09229062,91207.0,91187.0,0.010978]
[1767819662643,0.010976,91204.0,91184.0,0.010978]
[1767819662832,0.09328,91211.0,91185.0,0.104258]
[1767819663038,0.09328,91211.0,91200.0,0.010976]
[1767819663238,0.09328,91211.0,91186.0,0.09328]
[1767819663438,0.09328,91229.0,91211.0,0.010975]
[1767819663633,0.010973,91226.0,91206.0,0.010975]
[1767819663834,0.09328,91229.0,91213.0,0.010975]
[1767819664137,0.09328,91237.0,91220.0,0.010974]
[1767819664343,0.09328,91238.0,91221.0,0.010974]
[1767819664933,0.09328,91238.0,91223.0,0.010973]
[1767819666340,0.09328,91238.0,91226.0,0.010973]
[1767819666944,0.09328,91245.0,91222.0,0.10414187]
[1767819667141,0.09328,91245.0,91215.0,0.09328]
[1767819667142,0.09328,91245.0,91226.0,0.00429783]
[1767819667341,0.09328,91245.0,91227.0,0.00429783]
[1767819668048,0.09328,91245.0,91227.0,0.01527083]
[1767819669241,0.09328,91245.0,91226.0,0.19290904]
[1767819669242,0.19294708,91253.0,91237.0,0.010972]
[1767819669443,0.19289708,91253.0,91234.0,0.010972]
[1767819670149,0.19289708,91253.0,91236.0,0.010972]
[1767819670953,0.19289708,91253.0,91231.0,0.10349821]
[1767819670954,0.19289708,91253.0,91238.0,0.010972]
[1767819671154,0.09328,91253.0,91238.0,0.010972]
[1767819671856,0.10425,91253.0,91235.0,0.010972]
[1767819672066,0.10425,91253.0,91232.0,0.010972]
[1767819672243,0.10425,91253.0,91234.0,0.010972]
[1767819672745,0.09328,91253.0,91236.0,0.010972]
[1767819672941,0.09328,91253.0,91238.0,0.010972]
[1767819673366,0.09328,91253.0,91236.0,0.00265485]
[1767819673553,0.00219158,91259.0,91241.0,0.010971]
[1767819674058,0.010969,91258.0,91241.0,0.010971]
[1767819674254,1e-08,91259.0,91248.0,0.00244348]
[1767819674552,0.010969,91258.0,91247.0,0.09328]
[1767819674754,0.09971709,91259.0,91247.0,0.09328]
[1767819678961,0.09971709,91259.0,91236.0,0.09962904]
[1767819679164,0.09971708,91245.0,91230.0,0.09324]
[1767819679463,1e-08,91259.0,91234.0,0.09962904]
[1767819679653,1e-08,91259.0,91242.0,0.09962904]
[1767819679968,1e-08,91259.0,91251.0,0.01097]
[1767819680155,1e-08,91259.0,91243.0,0.19286904]
[1767819680156,1e-08,91259.0,91253.0,0.01097]
[1767819680461,1e-08,91259.0,91243.0,0.19286904]
[1767819680462,1e-08,91259.0,91252.0,0.01097]
[1767819680961,1e-08,91259.0,91249.0,0.01097]
[1767819681162,1e-08,91259.0,91251.0,0.01097]
[1767819681663,0.01096901,91259.0,91243.0,0.09324]
[1767819681861,1e-08,91259.0,91237.0,0.09962904]
[1767819682059,0.01097,91252.0,91238.0,0.09324]
[1767819682248,0.11068708,91252.0,91234.0,0.010972]
[1767819682453,0.09971708,91252.0,91235.0,0.09324]
[1767819683064,0.09971708,91252.0,91238.0,0.010972]
[1767819683567,1e-08,91259.0,91236.0,0.09962904]
[1767819683568,0.09971709,91259.0,91236.0,0.09962904]
[1767819683757,0.11068609,91259.0,91236.0,0.09962904]
[1767819683964,0.12758366,91259.0,91237.0,0.010972]
[1767819684163,0.09971708,91258.0,91237.0,0.010972]
[1767819684350,0.09966708,91258.0,91237.0,0.010972]
[1767819684556,0.09961708,91258.0,91239.0,0.010972]
[1767819685368,0.010969,91257.0,91236.0,0.11060104]
[1767819685556,0.010969,91257.0,91238.0,0.010972]
[1767819685963,0.01689758,91259.0,91238.0,0.010972]
[1767819686461,0.01689758,91259.0,91240.0,0.010971]
[1767819686662,0.09971708,91258.0,91240.0,0.010971]
[1767819686865,1e-08,91259.0,91236.0,0.09962904]
[1767819687166,1e-08,91259.0,91248.0,0.01097]
[1767819687470,1e-08,91259.0,91245.0,0.010971]
[1767819688069,1e-08,91259.0,91239.0,0.010972]
[1767819688257,1e-08,91259.0,91249.0,0.01097]
[1767819688456,1e-08,91259.0,91247.0,0.010971]
[1767819688761,1e-08,91259.0,91241.0,0.09962904]
[1767819689462,1e-08,91259.0,91248.0,0.01097]
[1767819690165,1e-08,91259.0,91249.0,0.01097]
[1767819690666,0.11661465,91254.0,91228.0,0.11072229]
[1767819690858,0.11661465,91254.0,91242.0,0.010971]
[1767819691168,0.09971708,91254.0,91241.0,0.09324]
[1767819691368,0.02786658,91259.0,91242.0,0.010971]
[1767819691568,0.12758366,91259.0,91242.0,0.010971]
[1767819692359,0.11661466,91259.0,91242.0,0.010971]
[1767819693860,0.11661466,91259.0,91241.0,0.09324]
[1767819694066,0.09971709,91259.0,91241.0,0.09324]
[1767819694258,0.09971709,91259.0,91245.0,0.010971]
[1767819694465,0.09971709,91259.0,91243.0,0.010971]
[1767819695169,1e-08,91259.0,91243.0,0.09240523]
[1767819695370,1e-08,91259.0,91245.0,0.09240523]
[1767819695574,1e-08,91259.0,91249.0,0.01097]
[1767819696074,1e-08,91259.0,91251.0,0.01097]
[1767819697672,1e-08,91259.0,91242.0,0.09324]
[1767819697673,1e-08,91259.0,91245.0,0.09240523]
[1767819698372,0.096736,91280.0,91267.0,0.010968]
[1767819698567,0.09324,91281.0,91259.0,0.10337423]
[1767819698769,0.09324,91281.0,91261.0,0.09240523]
[1767819699276,0.09324,91281.0,91268.0,0.010968]
[1767819699577,0.104207,91281.0,91265.0,0.010968]
[1767819700076,0.09324,91281.0,91267.0,0.010968]
[1767819700280,0.010967,91280.0,91267.0,0.010968]
[1767819700470,0.03815398,91282.0,91261.0,0.09240523]
[1767819701168,0.03815398,91282.0,91268.0,0.010968]
[1767819702095,0.03815398,91282.0,91263.0,0.10337423]
[1767819702276,0.010967,91279.0,91265.0,0.010968]
[1767819702480,0.03815398,91282.0,91264.0,0.010968]
[1767819702481,0.010967,91280.0,91264.0,0.010968]
[1767819702681,0.11397064,91279.0,91257.0,0.09324]
[1767819702880,0.010968,91269.0,91257.0,0.09324]
[1767819703085,0.010968,91267.0,91256.0,0.09324]
[1767819703277,0.107704,91267.0,91256.0,0.09324]
[1767819703669,0.096736,91267.0,91248.0,0.09324]
[1767819703879,0.096736,91267.0,91260.0,0.010969]
[1767819704074,0.096736,91267.0,91259.0,0.010969]
[1767819704385,0.096736,91267.0,91251.0,0.01097]
[1767819704685,0.096736,91267.0,91253.0,0.01097]
[1767819704868,0.096736,91267.0,91255.0,0.01097]
[1767819706673,0.11397064,91272.0,91256.0,0.010969]
[1767819706873,0.010968,91268.0,91254.0,0.01097]
[1767819707082,0.12493864,91272.0,91248.0,0.10421]
[1767819707376,0.12493864,91272.0,91258.0,0.010969]
[1767819707784,0.010968,91270.0,91256.0,0.010969]
[1767819708478,0.11397064,91272.0,91248.0,0.09324]
[1767819708679,0.010968,91267.0,91254.0,0.01097]
[1767819709188,0.12493864,91270.0,91254.0,0.01097]
[1767819709380,0.09324,91274.0,91248.0,0.09324]
[1767819709381,0.11397064,91258.0,91248.0,0.09324]
[1767819709591,0.096736,91256.0,91245.0,0.010971]
[1767819710286,0.096736,91256.0,91243.0,0.09324]
[1767819710485,0.096736,91256.0,91244.0,0.010971]
[1767819710785,0.01723464,91253.0,91241.0,0.010971]
[1767819710986,0.096736,91252.0,91234.0,0.09324]
[1767819711789,0.12494064,91250.0,91236.0,0.010972]
[1767819711979,0.096736,91248.0,91236.0,0.010972]
[1767819712784,0.096736,91248.0,91238.0,0.010972]
[1767819715383,0.096736,91242.0,91234.0,0.09324]
[1767819715577,0.010972,91233.0,91218.0,0.104214]
[1767819715782,0.11397064,91229.0,91218.0,0.09324]
[1767819716080,0.11397064,91229.0,91205.0,0.01372332]
[1767819716081,0.11397064,91227.0,91212.0,0.010975]
[1767819716689,0.096736,91225.0,91212.0,0.010975]
[1767819717191,0.096736,91220.0,91199.0,0.00219302]
[1767819717396,0.096736,91212.0,91199.0,0.01316902]
[1767819718288,0.096736,91212.0,91201.0,0.010976]
[1767819720289,0.107711,91210.0,91182.0,0.09240523]
[1767819720495,0.11397064,91206.0,91192.0,0.010977]
[1767819720695,0.11397064,91206.0,91197.0,0.010977]
[1767819720896,0.096736,91206.0,91197.0,0.010977]
[1767819722090,0.10881179,91205.0,91190.0,0.09324]
[1767819722389,0.10881179,91203.0,91190.0,0.09324]
[1767819722982,0.10881179,91197.0,91185.0,0.010978]
[1767819723190,0.10881179,91195.0,91185.0,0.010978]
[1767819723696,0.10881179,91195.0,91182.0,0.09324]
[1767819723891,0.091756,91191.0,91182.0,0.09324]
[1767819724092,0.091756,91191.0,91181.0,0.00012576]
[1767819724292,0.091756,91191.0,91182.0,0.010978]
[1767819724604,0.091756,91191.0,91181.0,0.00012576]
[1767819724997,9.572e-05,91196.0,91185.0,0.010978]
[1767819725296,9.572e-05,91196.0,91183.0,0.010978]
[1767819726197,9.572e-05,91196.0,91181.0,0.00012576]
[1767819727098,9.572e-05,91196.0,91191.0,0.010977]
[1767819728298,0.091756,91212.0,91187.0,0.10947619]
[1767819728601,0.09328,91211.0,91187.0,0.10947619]
[1767819728795,0.091756,91212.0,91189.0,0.120368]
[1767819728996,0.091756,91212.0,91199.0,0.010976]
[1767819729190,0.091756,91212.0,91201.0,0.010976]
[1767819729590,0.091756,91212.0,91190.0,0.10939]
[1767819729792,0.091756,91212.0,91185.0,0.09328]
[1767819729793,0.09997331,91220.0,91198.0,0.10939]
[1767819730001,0.09997331,91220.0,91191.0,0.010977]
[1767819730002,0.01811861,91223.0,91199.0,0.10939]
[1767819730299,0.02909261,91223.0,91206.0,0.010975]
[1767819730500,0.11809192,91222.0,91206.0,0.010975]
[1767819730800,0.12906592,91221.0,91206.0,0.010975]
[1767819730996,0.11809192,91219.0,91197.0,0.09328]
[1767819731185,0.11809192,91218.0,91204.0,0.010976]
[1767819732300,0.11809192,91218.0,91197.0,0.09328]
[1767819732301,0.11809192,91218.0,91206.0,0.010975]
[1767819732601,0.11809192,91218.0,91203.0,0.010976]
[1767819733796,0.12906592,91218.0,91203.0,0.010976]
[1767819734002,0.09997331,91213.0,91200.0,0.010976]
[1767819734204,0.11809192,91213.0,91200.0,0.010976]
[1767819734388,0.11809192,91213.0,91202.0,0.010976]
[1767819736400,0.11809192,91209.0,91197.0,0.09328]
[1767819736595,0.11809192,91204.0,91182.0,0.01689079]
[1767819736791,0.11809192,91204.0,91184.0,0.09328]
[1767819736988,0.11809192,91202.0,91189.0,0.010977]
[1767819737197,0.11809192,91202.0,91186.0,0.010978]
[1767819737402,0.11809192,91200.0,91188.0,0.010978]
[1767819738190,0.09328,91212.0,91186.0,0.010978]
[1767819738191,0.11809192,91199.0,91186.0,0.010978]
[1767819739197,0.11809192,91197.0,91186.0,0.010978]
[1767819739402,0.01811861,91196.0,91186.0,0.010978]
[1767819739698,0.01811861,91196.0,91188.0,0.010978]
[1767819739894,0.09997331,91197.0,91190.0,0.010977]
[1767819741293,0.11809192,91196.0,91184.0,0.09328]
[1767819741602,0.09997331,91190.0,91179.0,0.010979]
[1767819741803,0.11809192,91190.0,91179.0,0.010979]
[1767819742001,0.11809192,91189.0,91179.0,0.010979]
[1767819742306,0.11809192,91189.0,91177.0,0.09328]
[1767819742699,0.00013483,91188.0,91177.0,0.09328]
[1767819743004,0.00013483,91188.0,91178.0,0.010979]
[1767819743500,0.00013483,91188.0,91180.0,0.010979]
[1767819743696,0.00013483,91188.0,91177.0,0.104259]
[1767819743908,0.00013483,91188.0,91177.0,0.09328]
[1767819745304,0.00013483,91188.0,91178.0,0.010979]
[1767819745491,0.09997331,91187.0,91177.0,0.07589021]
[1767819745698,0.11809192,91178.0,91169.0,0.00219374]
[1767819745897,0.11809192,91177.0,91162.0,0.05923319]
[1767819746105,0.09997331,91177.0,91162.0,0.05923319]
[1767819746502,0.09997331,91177.0,91173.0,0.010979]
[1767819747303,0.09997331,91177.0,91170.0,0.01098]
[1767819747508,0.11809192,91176.0,91159.0,0.15348059]
[1767819747712,0.11809192,91176.0,91160.0,0.10967918]
[1767819748011,0.11809192,91176.0,91168.0,0.01098]
[1767819748207,0.01811861,91186.0,91161.0,0.010981]
[1767819748509,0.01811861,91186.0,91164.0,0.0919173]
[1767819748904,0.01811861,91186.0,91173.0,0.010979]
[1767819749908,0.01811861,91186.0,91171.0,0.01098]
[1767819752216,0.01800006,91182.0,91168.0,0.01098]
[1767819752410,0.010978,91184.0,91168.0,0.01098]
[1767819752411,0.01800006,91181.0,91168.0,0.01098]
[1767819752619,0.01800006,91179.0,91168.0,0.01098]
[1767819753719,0.01800006,91179.0,91159.0,0.15348059]
[1767819754122,0.01800006,91179.0,91160.0,0.10968099]
[1767819754314,0.01800006,91179.0,91169.0,0.01098]
[1767819755628,0.01800006,91184.0,91161.0,0.10278706]
[1767819755828,0.01800006,91184.0,91169.0,0.01098]
[1767819756229,0.01800006,91184.0,91171.0,0.01098]
[1767819756930,0.01800006,91184.0,91172.0,0.01098]
[1767819757321,0.01800006,91184.0,91169.0,0.01098]
[1767819757522,0.01800006,91180.0,91159.0,0.15348059]
[1767819757722,0.01800006,91180.0,91168.0,0.01098]
[1767819758430,0.01800006,91180.0,91170.0,0.01098]
[1767819760131,0.00013483,91188.0,91172.0,0.09180606]
[1767819760322,0.11132006,91206.0,91191.0,0.010977]
[1767819760629,0.010974,91219.0,91173.0,0.09332]
[1767819760630,0.01800006,91196.0,91178.0,0.010979]
[1767819760832,0.09332,91201.0,91183.0,0.10278406]
[1767819761024,0.09332,91202.0,91185.0,0.10278406]
[1767819761226,0.09332,91202.0,91185.0,0.09180606]
[1767819761426,0.09332,91202.0,91192.0,0.010977]
[1767819762317,0.09332,91202.0,91193.0,0.010977]
[1767819762521,0.01800006,91205.0,91193.0,0.010977]
[1767819762723,0.11128006,91205.0,91193.0,0.010977]
[1767819763335,0.01800006,91202.0,91181.0,0.09180606]
[1767819764334,0.01800006,91202.0,91187.0,0.010978]
[1767819766732,0.01800006,91202.0,91189.0,0.010978]
[1767819766928,0.01800006,91202.0,91191.0,0.010977]
[1767819767239,0.09328,91205.0,91191.0,0.010977]
[1767819769138,0.09328,91205.0,91182.0,0.01762798]
[1767819769139,0.010976,91203.0,91184.0,0.010978]
[1767819769336,0.02897606,91203.0,91184.0,0.010978]
[1767819769533,0.01800006,91202.0,91184.0,0.010978]
[1767819770142,0.01800006,91202.0,91183.0,0.09180606]
[1767819770143,0.01800006,91202.0,91186.0,0.010978]
[1767819772544,0.010976,91204.0,91186.0,0.010978]
[1767819772940,0.010976,91204.0,91186.0,0.10278406]
[1767819773131,0.010976,91204.0,91188.0,0.010978]
[1767819773337,0.09328,91205.0,91191.0,0.09180606]
[1767819774231,0.09328,91205.0,91198.0,0.010976]
[1767819774637,0.11228596,91212.0,91198.0,0.010976]
[1767819774847,0.49328,91211.0,91198.0,0.010976]
[1767819775141,0.49328,91211.0,91200.0,0.010976]
[1767819775339,0.09328,91218.0,91206.0,0.010976]
[1767819775541,0.09328,91226.0,91207.0,0.10943404]
[1767819775745,0.09328,91226.0,91214.0,0.010974]
[1767819776042,0.09328,91226.0,91209.0,0.10943404]
[1767819776548,0.09328,91226.0,91209.0,0.12040904]
[1767819776740,0.09328,91226.0,91209.0,0.10943404]
[1767819777050,0.09328,91226.0,91209.0,0.09180606]
[1767819777646,0.09328,91226.0,91210.0,0.010975]
[1767819778247,0.09328,91226.0,91209.0,0.09180606]
[1767819779252,0.11128006,91226.0,91209.0,0.09180606]
[1767819779451,0.02897306,91225.0,91209.0,0.09180606]
[1767819780551,0.09328,91226.0,91203.0,0.09180606]
[1767819780858,0.09328,91226.0,91202.0,0.09328]
[1767819780859,0.01800006,91214.0,91202.0,0.09328]
[1767819781647,0.01800006,91214.0,91199.0,0.010976]
[1767819781856,0.01800006,91214.0,91201.0,0.010976]
[1767819784349,0.01800006,91214.0,91198.0,0.10278206]
[1767819784558,0.01800006,91214.0,91198.0,0.010976]
[1767819784959,0.02897506,91214.0,91195.0,0.16569598]
[1767819785257,0.010975,91212.0,91195.0,0.24816791]
[1767819785860,0.01843217,91213.0,91196.0,0.10442593]
[1767819786249,0.01843217,91213.0,91198.0,0.010976]
[1767819787160,0.010974,91217.0,91198.0,0.010976]
[1767819787360,0.01843217,91216.0,91198.0,0.010976]
[1767819787858,0.010974,91215.0,91198.0,0.010976]
[1767819789162,0.010974,91215.0,91196.0,0.18011849]
[1767819789163,0.01843217,91214.0,91196.0,0.09344893]
[1767819789462,0.01843217,91211.0,91197.0,0.010977]
[1767819789848,0.10866893,91214.0,91197.0,0.010977]
[1767819790162,0.01843217,91214.0,91197.0,0.010977]
[1767819790565,0.010975,91213.0,91197.0,0.010977]
[1767819791754,0.01843217,91214.0,91195.0,0.18672893]
[1767819792065,0.01843217,91214.0,91199.0,0.010976]
[1767819794567,0.01843217,91214.0,91200.0,0.010976]
[1767819795066,0.010971,91241.0,91205.0,0.09344893]
[1767819795067,0.01843217,91223.0,91205.0,0.09344893]
[1767819795268,0.01843217,91223.0,91208.0,0.010975]
[1767819795667,0.09328,91227.0,91212.0,0.11082485]
[1767819795969,0.01843217,91226.0,91208.0,0.09344893]
[1767819796166,0.01843217,91219.0,91203.0,0.010976]
[1767819796470,0.09023676,91223.0,91197.0,0.09344893]
[1767819796471,0.01843217,91217.0,91202.0,0.010976]
[1767819796666,0.01843217,91217.0,91197.0,0.09344893]
[1767819796880,0.01843217,91212.0,91198.0,0.010976]
[1767819797670,0.01843217,91212.0,91196.0,0.09328]
[1767819797671,0.01843217,91211.0,91196.0,0.09328]
[1767819797877,0.01843217,91211.0,91194.0,0.010977]
[1767819798063,0.01843217,91206.0,91191.0,0.104257]
[1767819798264,0.01843217,91206.0,91190.0,0.010977]
[1767819798781,0.01843217,91206.0,91188.0,0.09328]
[1767819798782,0.01843217,91206.0,91192.0,0.010977]
[1767819798968,0.01843217,91206.0,91189.0,0.09344893]
[1767819799174,0.02940717,91210.0,91193.0,0.010977]
[1767819799478,0.01843217,91209.0,91193.0,0.010977]
[1767819800275,0.01843217,91209.0,91191.0,0.09344893]
[1767819800576,0.09023676,91212.0,91168.0,0.09344893]
[1767819800577,0.01843217,91190.0,91168.0,0.09344893]
[1767819800763,0.01843217,91190.0,91173.0,0.010979]
[1767819801075,0.01843217,91190.0,91175.0,0.010979]
[1767819801572,0.01843217,91190.0,91177.0,0.010979]
[1767819804265,0.01843217,91190.0,91175.0,0.010979]
[1767819804465,0.01843217,91190.0,91177.0,0.010979]
[1767819804865,0.01843217,91190.0,91170.0,0.09344893]
[1767819805074,0.01843217,91189.0,91174.0,0.010979]
[1767819805678,0.104257,91193.0,91174.0,0.010979]
[1767819805679,0.11171217,91193.0,91174.0,0.09344893]
[1767819806171,0.010977,91192.0,91174.0,0.10442793]
[1767819806467,0.01843217,91191.0,91174.0,0.10442793]
[1767819806863,0.01843217,91191.0,91176.0,0.010979]
[1767819808175,0.02940917,91191.0,91174.0,0.10442793]
[1767819808372,0.09328,91193.0,91178.0,0.09344893]
[1767819808578,0.09328,91193.0,91180.0,0.09344893]
[1767819808776,0.09328,91193.0,91181.0,0.010979]
[1767819809470,0.010974,91216.0,91170.0,0.08889754]
[1767819809471,0.01843217,91209.0,91188.0,0.09344893]
[1767819809666,0.01843217,91209.0,91194.0,0.010977]
[1767819809869,0.09328,91208.0,91191.0,0.010977]
[1767819811076,0.09328,91208.0,91193.0,0.010977]
[1767819811279,0.01843217,91207.0,91192.0,0.010977]
[1767819811882,0.09328,91208.0,91192.0,0.010977]
[1767819812174,0.01609012,91220.0,91197.0,0.11537936]
[1767819812378,0.01609012,91218.0,91201.0,0.09831148]
[1767819812580,0.01609012,91218.0,91200.0,0.010976]
[1767819813279,0.01609012,91217.0,91200.0,0.010976]
[1767819814769,0.01609012,91217.0,91195.0,0.09831148]
[1767819815172,0.01609012,91217.0,91197.0,0.09831148]
[1767819815370,0.01609012,91217.0,91197.0,0.11537936]
[1767819815979,0.01609012,91217.0,91203.0,0.010976]
[1767819816183,0.09328,91219.0,91207.0,0.010975]
[1767819816786,0.09328,91219.0,91205.0,0.09831148]
[1767819817483,0.09328,91219.0,91204.0,0.010976]
[1767819817687,0.09328,91219.0,91201.0,0.010976]
[1767819817989,0.104254,91219.0,91201.0,0.010976]
[1767819818184,0.12034412,91219.0,91201.0,0.010976]
[1767819818488,0.10937012,91219.0,91203.0,0.010976]
[1767819819590,0.10937012,91219.0,91199.0,0.11537936]
[1767819819791,0.10937012,91219.0,91204.0,0.010976]
[1767819821081,0.10937012,91219.0,91199.0,0.11537936]
[1767819821082,0.10937012,91219.0,91203.0,0.010976]
[1767819821482,0.01609012,91218.0,91203.0,0.010976]
[1767819821878,0.01609012,91218.0,91205.0,0.010976]
[1767819822092,0.0021923,91229.0,91205.0,0.09831148]
[1767819822093,0.10872116,91226.0,91205.0,0.09831148]
[1767819822390,0.09328,91225.0,91209.0,0.09831148]
[1767819822696,0.09328,91225.0,91209.0,0.11537936]
[1767819822877,0.09328,91225.0,91204.0,0.010976]
[1767819822878,0.01609012,91235.0,91216.0,0.09831148]
[1767819823078,0.09328,91234.0,91221.0,0.010974]
[1767819823483,0.10937012,91234.0,91221.0,0.010974]
[1767819824386,0.10937012,91234.0,91218.0,0.010974]
[1767819824897,0.10937012,91234.0,91220.0,0.010974]
[1767819825491,0.10937012,91234.0,91222.0,0.010974]
[1767819826396,0.10937012,91234.0,91219.0,0.010974]